bitfinex/quotes_BTCUSD_20251120
["timestamp","ask_amount","ask_price","bid_price","bid_amount"]
[1763616868516,0.0603598,92697.0,92696.0,0.099]
[1763616869145,0.02796958,92697.0,92696.0,0.099]
[1763616870354,0.04387958,92697.0,92696.0,0.099]
[1763616870563,0.39060958,92697.0,92696.0,0.099]
[1763616870769,0.36364,92697.0,92696.0,0.099]
[1763616871594,0.01079097,92670.0,92661.0,0.21584053]
[1763616871788,0.12108371,92668.0,92664.0,0.01079167]
[1763616872084,0.1102925,92668.0,92665.0,0.11079156]
[1763616872316,0.1102925,92668.0,92665.0,0.1]
[1763616872498,0.00364,92669.0,92665.0,0.1]
[1763616872499,0.00364,92669.0,92668.0,0.21582423]
[1763616874206,0.00464,92669.0,92668.0,0.21582423]
[1763616874416,0.001,92669.0,92668.0,0.31582423]
[1763616875428,0.00364,92670.0,92668.0,0.31582423]
[1763616875650,0.001,92669.0,92668.0,0.31582423]
[1763616876321,0.00364,92670.0,92668.0,0.31582423]
[1763616876769,0.00464,92670.0,92668.0,0.31582423]
[1763616887832,0.00464,92670.0,92668.0,0.31314423]
[1763616888050,0.00464,92670.0,92668.0,0.1]
[1763616888874,0.00464,92670.0,92669.0,0.2158219]
[1763616890479,0.00364,92670.0,92669.0,0.2158219]
[1763616890838,0.00464,92670.0,92669.0,0.3158219]
[1763616892924,0.00764,92670.0,92669.0,0.3158219]
[1763616906737,0.00764,92670.0,92669.0,0.2158219]
[1763616908059,0.00764,92670.0,92669.0,0.3158219]
[1763616910663,0.004,92670.0,92669.0,0.3158219]
[1763616931241,0.00114093,92684.0,92683.0,0.2157893]
[1763616932460,0.00114093,92684.0,92683.0,0.3157893]
[1763616932680,0.00414093,92684.0,92683.0,0.3157893]
[1763616933080,0.00514093,92684.0,92683.0,0.3157893]
[1763616935411,9.3e-07,92684.0,92683.0,0.3157893]
[1763616935614,0.00364,92697.0,92696.0,0.21575904]
[1763616935815,0.00364,92697.0,92694.0,0.22654977]
[1763616936042,0.00364,92697.0,92696.0,0.21575904]
[1763616937075,0.00364,92697.0,92696.0,0.31575904]
[1763616937216,0.00464,92697.0,92696.0,0.31575904]
[1763616937617,0.00864,92697.0,92696.0,0.31575904]
[1763616941112,0.00901229,92697.0,92696.0,0.31575904]
[1763616941667,0.00801229,92697.0,92696.0,0.31575904]
[1763616941883,0.00401229,92697.0,92696.0,0.31575904]
[1763616942376,0.00701229,92697.0,92696.0,0.31575904]
[1763616943239,0.00701229,92697.0,92696.0,0.1]
[1763616943424,0.00701229,92697.0,92696.0,0.31575904]
[1763616945132,0.00337229,92697.0,92696.0,0.31575904]
[1763616945348,0.00701229,92697.0,92696.0,0.31575904]
[1763616946129,0.00701229,92697.0,92696.0,0.1]
[1763616947239,0.00337229,92697.0,92696.0,0.1]
[1763616947437,0.00701229,92697.0,92696.0,0.1]
[1763616948981,0.00701229,92697.0,92696.0,0.099]
[1763616953617,0.00701229,92697.0,92696.0,0.31475904]
[1763616955710,0.00701229,92697.0,92696.0,0.099]
[1763616956663,0.00701229,92697.0,92696.0,0.098]
[1763616959745,0.04754229,92697.0,92696.0,0.098]
[1763616960991,0.04454229,92697.0,92696.0,0.098]
[1763616961226,0.04554229,92697.0,92696.0,0.098]
[1763616961443,0.04854229,92697.0,92696.0,0.098]
[1763616964082,0.37154229,92697.0,92696.0,0.098]
[1763616964290,0.40393625,92697.0,92696.0,0.098]
[1763616964509,0.01079004,92678.0,92671.0,0.01079086]
[1763616964724,0.1102925,92674.0,92671.0,0.0001267]
[1763616964934,0.01534,92677.0,92671.0,0.01091756]
[1763616965125,0.01079028,92676.0,92673.0,0.01079062]
[1763616965324,0.24193542,92677.0,92673.0,0.01079062]
[1763616965559,0.24193542,92677.0,92672.0,0.01079074]
[1763616965768,0.01079028,92676.0,92672.0,0.01079074]
[1763616966188,0.01079039,92675.0,92674.0,0.1]
[1763616966400,0.23114331,92677.0,92674.0,0.1]
[1763616966626,0.02613016,92677.0,92674.0,0.1]
[1763616967046,0.001,92676.0,92674.0,0.099]
[1763616967254,0.004,92676.0,92674.0,0.099]
[1763616967483,0.02613016,92677.0,92674.0,0.099]
[1763616967901,0.03013016,92677.0,92674.0,0.099]
[1763616968106,0.05144016,92677.0,92674.0,0.099]
[1763616969367,0.01591,92675.0,92674.0,0.099]
[1763616970003,0.04022,92675.0,92674.0,0.099]
[1763616970450,0.04122,92675.0,92674.0,0.099]
[1763616971114,0.04422,92675.0,92674.0,0.099]
[1763616972163,0.05592,92675.0,92674.0,0.099]
[1763616976964,0.05592,92675.0,92674.0,0.098]
[1763616981977,0.08289599,92675.0,92674.0,0.098]
[1763616983255,0.03161,92675.0,92674.0,0.098]
[1763616984488,0.03161,92675.0,92674.0,0.097]
[1763616985032,0.0157,92675.0,92674.0,0.097]
[1763616985682,0.04267599,92675.0,92674.0,0.097]
[1763616986666,0.0157,92675.0,92674.0,0.097]
[1763616986868,0.04267599,92675.0,92674.0,0.097]
[1763616987664,0.08200599,92675.0,92674.0,0.097]
[1763616990475,0.08200599,92675.0,92672.0,0.14064711]
[1763616990679,0.01575,92673.0,92672.0,0.01079074]
[1763616991013,0.25514462,92673.0,92671.0,0.0001267]
[1763616991312,0.01575,92672.0,92671.0,0.0001267]
[1763616991513,0.03933,92672.0,92671.0,0.0001267]
[1763616992211,0.03933,92672.0,92671.0,0.1001267]
[1763616992859,0.25814491,92672.0,92671.0,0.1001267]
[1763616993284,0.04233,92672.0,92671.0,0.1001267]
[1763616994327,0.04333,92672.0,92671.0,0.1001267]
[1763616994548,0.04333,92672.0,92671.0,0.0991267]
[1763616999996,0.07030686,92672.0,92671.0,0.0991267]
[1763617002066,0.22661881,92667.0,92661.0,0.22663091]
[1763617002266,0.1102925,92662.0,92661.0,0.22663091]
[1763617002489,0.1102925,92662.0,92661.0,0.01079202]
[1763617003046,0.1102925,92662.0,92660.0,0.00014107]
[1763617003170,0.1102925,92662.0,92661.0,0.1]
[1763617004270,0.1122925,92662.0,92661.0,0.1]
[1763617005096,0.1102925,92662.0,92661.0,0.1]
[1763617006249,0.1122925,92662.0,92661.0,0.1]
[1763617006650,0.1132925,92662.0,92661.0,0.1]
[1763617008019,0.3291307,92662.0,92661.0,0.1]
[1763617008220,0.1132925,92662.0,92661.0,0.1]
[1763617011783,0.1132925,92662.0,92661.0,0.31584053]
[1763617013425,0.1132925,92662.0,92661.0,0.1]
[1763617014907,0.1285525,92662.0,92661.0,0.1]
[1763617015093,0.6906107,92662.0,92661.0,0.1]
[1763617015297,0.72301568,92662.0,92661.0,0.1]
[1763617015509,0.323,92661.0,92660.0,0.00014107]
[1763617015711,0.36148,92661.0,92660.0,0.00014107]
[1763617016531,0.52271824,92661.0,92660.0,0.00014107]
[1763617016743,0.43913293,92661.0,92660.0,0.00014107]
[1763617016946,0.47455253,92661.0,92660.0,0.00014107]
[1763617017120,0.47255253,92661.0,92660.0,0.00014107]
[1763617017423,2.47155253,92661.0,92660.0,0.00014107]
[1763617017774,2.58068828,92661.0,92660.0,0.00014107]
[1763617018126,2.47155253,92661.0,92660.0,0.00014107]
[1763617019120,2.54224361,92661.0,92660.0,0.00014107]
[1763617019299,2.51893961,92661.0,92660.0,0.00014107]
[1763617019889,0.53888014,92644.0,92640.0,0.0002]
[1763617020096,0.56971014,92644.0,92640.0,0.0002]
[1763617020289,0.59293014,92644.0,92640.0,0.0002]
[1763617020594,0.59725212,92644.0,92640.0,0.0002]
[1763617021017,0.59825212,92644.0,92640.0,0.0002]
[1763617022048,0.60125212,92644.0,92640.0,0.0002]
[1763617025501,0.60125212,92644.0,92643.0,0.00057724]
[1763617034749,0.62136695,92644.0,92643.0,0.00057724]
[1763617035374,0.67346944,92644.0,92643.0,0.00057724]
[1763617035562,0.78260519,92644.0,92643.0,0.00057724]
[1763617035726,0.67346944,92644.0,92643.0,0.00057724]
[1763617039137,0.66910569,92644.0,92643.0,0.00057724]
[1763617043231,0.6791928,92644.0,92643.0,0.00057724]
[1763617045228,0.70247443,92644.0,92643.0,0.00057724]
[1763617052813,0.69883443,92644.0,92643.0,0.00057724]
[1763617053010,0.70247443,92644.0,92643.0,0.00057724]
[1763617056337,0.6791928,92644.0,92643.0,0.00057724]
[1763617057160,0.67932678,92644.0,92643.0,0.00057724]
[1763617059795,0.67568678,92644.0,92643.0,0.00057724]
[1763617060005,0.67932678,92644.0,92643.0,0.00057724]
[1763617061251,0.66923967,92644.0,92643.0,0.00057724]
[1763617065578,0.66559967,92644.0,92643.0,0.00057724]
[1763617065732,0.66923967,92644.0,92643.0,0.00057724]
[1763617065928,0.66559967,92644.0,92643.0,0.00057724]
[1763617066128,0.61713718,92644.0,92643.0,0.00057724]
[1763617067625,0.66923967,92644.0,92643.0,0.00057724]
[1763617073618,0.66923967,92644.0,92643.0,0.00057724]
[1763617075675,0.0107968,92620.0,92616.0,0.01079727]
[1763617075876,0.1102925,92617.0,92616.0,0.01079727]
[1763617076215,0.1102925,92617.0,92612.0,0.01079773]
[1763617076423,0.1102925,92617.0,92613.0,0.22674831]
[1763617076624,0.1102925,92617.0,92615.0,0.21594729]
[1763617076891,0.12108965,92617.0,92615.0,0.0004223]
[1763617077041,0.12108965,92617.0,92615.0,0.1004223]
[1763617077042,0.33703431,92617.0,92615.0,0.1004223]
[1763617077245,0.33903431,92617.0,92615.0,0.1004223]
[1763617077466,0.33703431,92617.0,92615.0,0.1004223]
[1763617077830,0.33903467,92617.0,92615.0,0.1004223]
[1763617079524,0.33903405,92617.0,92615.0,0.1004223]
[1763617080523,0.1122925,92617.0,92616.0,0.2159454]
[1763617080669,0.1122925,92617.0,92615.0,0.1004223]
[1763617081209,0.3282376,92617.0,92615.0,0.1004223]
[1763617081595,0.3282376,92617.0,92616.0,0.00077415]
[1763617082701,0.3262376,92617.0,92616.0,0.00077415]
[1763617082883,0.3282376,92617.0,92616.0,0.00077415]
[1763617083483,0.3282376,92617.0,92616.0,0.10077415]
[1763617084607,0.1122925,92617.0,92616.0,0.10077415]
[1763617089945,0.1122925,92617.0,92616.0,0.04077415]
[1763617090186,0.1159325,92617.0,92616.0,0.04077415]
[1763617090389,0.002,92617.0,92616.0,0.04077415]
[1763617090590,0.00564,92617.0,92616.0,0.04077415]
[1763617101919,0.002,92617.0,92616.0,0.04077415]
[1763617102206,0.00564,92617.0,92616.0,0.04077415]
[1763617106083,0.002,92617.0,92616.0,0.04077415]
[1763617106301,0.00564,92617.0,92616.0,0.04077415]
[1763617113083,0.002,92617.0,92616.0,0.04077415]
[1763617113521,0.00564,92617.0,92616.0,0.04077415]
[1763617115917,0.002,92617.0,92616.0,0.04077415]
[1763617116131,0.00564,92617.0,92616.0,0.04077415]
[1763617117831,0.00564,92617.0,92616.0,0.25671955]
[1763617118232,0.00564,92617.0,92616.0,0.04077415]
[1763617119127,0.00564,92617.0,92616.0,0.25671955]
[1763617120886,0.00564,92617.0,92616.0,0.04077415]
[1763617129421,0.00564,92617.0,92615.0,0.07921291]
[1763617130280,0.00364,92617.0,92615.0,0.07921291]
[1763617130497,0.00564,92617.0,92615.0,0.07921291]
[1763617131052,0.00564,92617.0,92616.0,0.1]
[1763617132289,0.00364,92617.0,92616.0,0.1]
[1763617132453,0.00564,92617.0,92616.0,0.1]
[1763617139270,0.002,92617.0,92616.0,0.1]
[1763617139473,0.00564,92617.0,92616.0,0.1]
[1763617139672,0.00564,92617.0,92616.0,0.132411]
[1763617140307,0.002,92617.0,92616.0,0.132411]
[1763617156559,0.002,92617.0,92616.0,0.1]
[1763617156886,0.002,92617.0,92616.0,0.11079493]
[1763617157893,0.00214,92623.0,92620.0,0.0107968]
[1763617158092,0.00214,92623.0,92621.0,0.21593375]
[1763617159162,0.00214,92623.0,92622.0,0.1]
[1763617159287,0.00414,92623.0,92622.0,0.1]
[1763617159515,0.002,92623.0,92622.0,0.1]
[1763617160155,0.002,92623.0,92622.0,0.13240711]
[1763617160364,0.00475297,92639.0,92636.0,0.01079493]
[1763617160568,0.00475297,92639.0,92637.0,0.21589645]
[1763617161859,0.00675297,92639.0,92637.0,0.21589645]
[1763617162841,0.00675297,92639.0,92638.0,0.1]
[1763617163410,0.00311297,92639.0,92638.0,0.1]
[1763617163759,0.00111297,92639.0,92638.0,0.1]
[1763617164127,0.00311297,92639.0,92638.0,0.1]
[1763617166634,0.00111297,92639.0,92638.0,0.1]
[1763617167088,0.00311297,92639.0,92638.0,0.1]
[1763617168176,0.00111297,92639.0,92638.0,0.1]
[1763617168575,0.00311297,92639.0,92638.0,0.1]
[1763617170554,0.00311297,92639.0,92638.0,0.423]
[1763617170949,0.00066288,92639.0,92638.0,0.423]
[1763617171821,0.00364,92658.0,92655.0,0.01079272]
[1763617171996,0.00364,92658.0,92655.0,0.22664686]
[1763617172337,0.00364,92658.0,92656.0,0.21585057]
[1763617173173,0.0040626,92658.0,92656.0,0.21585057]
[1763617173593,0.0024226,92658.0,92657.0,0.1]
[1763617173774,0.0060626,92658.0,92657.0,0.1]
[1763617174424,0.0040626,92658.0,92657.0,0.1]
[1763617174832,0.0060626,92658.0,92657.0,0.1]
[1763617175032,0.0070626,92658.0,92657.0,0.1]
[1763617175559,0.0060626,92658.0,92657.0,0.1]
[1763617175942,0.0070626,92658.0,92657.0,0.1]
[1763617183328,0.0034226,92658.0,92657.0,0.1]
[1763617183532,0.0070626,92658.0,92657.0,0.1]
[1763617183739,0.00760709,92658.0,92657.0,0.1]
[1763617203801,0.00760709,92658.0,92656.0,0.21585015]
[1763617203802,0.00760709,92658.0,92656.0,0.11748646]
[1763617204102,0.00051584,92657.0,92656.0,0.11748646]
[1763617205213,0.00051584,92657.0,92656.0,0.21748646]
[1763617205740,0.00251584,92657.0,92656.0,0.21748646]
[1763617206481,0.00351584,92657.0,92656.0,0.21748646]
[1763617208221,0.00351584,92657.0,92656.0,0.31585218]
[1763617211404,0.00351584,92657.0,92656.0,0.1]
[1763617211601,0.04328584,92657.0,92656.0,0.1]
[1763617217883,0.41838833,92657.0,92656.0,0.1]
[1763617218148,0.43860953,92657.0,92656.0,0.1]
[1763617218347,0.45079856,92657.0,92656.0,0.1]
[1763617218525,0.01079505,92635.0,92630.0,0.01079563]
[1763617218723,0.1102925,92631.0,92628.0,0.22671183]
[1763617219493,0.1102925,92631.0,92629.0,0.21591357]
[1763617219697,0.1102925,92631.0,92628.0,0.22671255]
[1763617219991,0.1102925,92631.0,92630.0,0.1]
[1763617220707,0.1112925,92631.0,92630.0,0.1]
[1763617221139,0.1102925,92631.0,92630.0,0.1]
[1763617221404,0.1112925,92631.0,92630.0,0.1]
[1763617221842,0.32720294,92631.0,92630.0,0.1]
[1763617222045,0.36697294,92631.0,92630.0,0.1]
[1763617224227,0.1510625,92631.0,92630.0,0.1]
[1763617224631,0.34288294,92631.0,92630.0,0.1]
[1763617225116,0.35519294,92631.0,92630.0,0.1]
[1763617228157,0.37874294,92631.0,92630.0,0.1]
[1763617229203,0.1392825,92631.0,92630.0,0.1]
[1763617230689,0.1236025,92631.0,92630.0,0.1]
[1763617231350,0.1112925,92631.0,92630.0,0.1]
[1763617240274,0.33874294,92631.0,92630.0,0.1]
[1763617240859,0.1228325,92631.0,92630.0,0.0996745]
[1763617241374,0.1627425,92631.0,92630.0,0.0996745]
[1763617241946,0.1381925,92631.0,92630.0,0.0996745]
[1763617245678,0.1112925,92631.0,92630.0,0.0996745]
[1763617249937,0.1266525,92631.0,92630.0,0.0996745]
[1763617250193,0.1112925,92631.0,92630.0,0.0996745]
[1763617250783,0.1112925,92631.0,92630.0,0.31558727]
[1763617251435,0.1112925,92631.0,92630.0,0.0996745]
[1763617255180,0.001,92631.0,92630.0,0.0996745]
[1763617273424,0.001,92631.0,92630.0,0.4226745]
[1763617274092,0.001,92631.0,92630.0,0.45507906]
[1763617274936,0.0004226,92658.0,92644.0,0.010794]
[1763617275164,0.00364,92646.0,92645.0,0.21587781]
[1763617275579,0.0004226,92658.0,92645.0,0.21587781]
[1763617275786,0.00364,92646.0,92645.0,0.21587781]
[1763617276678,0.00364,92646.0,92645.0,0.31454781]
[1763617278518,0.00364,92646.0,92645.0,0.09967]
[1763617278693,0.00564,92646.0,92645.0,0.09967]
[1763617285391,0.00564,92646.0,92645.0,0.09867]
[1763617287709,0.22151548,92646.0,92645.0,0.09867]
[1763617289050,0.00564,92646.0,92645.0,0.09867]
[1763617292687,0.00564,92646.0,92645.0,0.09767]
[1763617293286,0.00564,92646.0,92644.0,0.09355195]
[1763617293583,0.1102925,92645.0,92644.0,0.09355195]
[1763617294764,0.1112925,92645.0,92644.0,0.09355195]
[1763617295091,0.1112925,92645.0,92644.0,0.19355195]
[1763617296383,0.1112925,92645.0,92644.0,0.1]
[1763617296657,0.1112925,92645.0,92644.0,0.31588014]
[1763617296885,0.1112925,92645.0,92644.0,0.1]
[1763617297617,0.1112925,92645.0,92644.0,0.31588014]
[1763617299392,0.1112925,92645.0,92644.0,0.1]
[1763617300702,0.1112925,92645.0,92644.0,0.099]
[1763617301942,0.1521125,92645.0,92644.0,0.099]
[1763617303321,0.20421499,92645.0,92644.0,0.099]
[1763617304107,0.20321499,92645.0,92644.0,0.099]
[1763617304309,0.23562599,92645.0,92644.0,0.099]
[1763617304514,0.01079622,92625.0,92619.0,0.22673451]
[1763617304865,0.12472883,92624.0,92620.0,0.0107968]
[1763617305678,0.00406234,92624.0,92621.0,0.22673043]
[1763617305903,0.00406234,92624.0,92623.0,0.21592908]
[1763617306040,0.00506234,92624.0,92623.0,0.21592908]
[1763617307391,0.00406234,92624.0,92623.0,0.21592908]
[1763617307558,0.00506234,92624.0,92623.0,0.21592908]
[1763617307965,0.00506234,92624.0,92621.0,0.22673043]
[1763617308168,0.00506234,92624.0,92622.0,0.21592913]
[1763617308549,0.00506234,92624.0,92621.0,0.22673043]
[1763617308755,0.00406234,92624.0,92623.0,0.1]
[1763617309159,0.00506234,92624.0,92623.0,0.1]
[1763617309911,0.00506234,92624.0,92623.0,0.099]
[1763617310361,0.00406234,92624.0,92623.0,0.099]
[1763617310585,0.00506234,92624.0,92623.0,0.099]
[1763617314061,0.00506234,92624.0,92623.0,0.31492908]
[1763617314251,0.00506234,92624.0,92623.0,0.099]
[1763617329727,0.05544234,92624.0,92623.0,0.099]
[1763617330151,0.01636234,92624.0,92623.0,0.099]
[1763617330549,0.01536234,92624.0,92623.0,0.099]
[1763617331197,0.00406234,92624.0,92623.0,0.099]
[1763617331875,0.00506234,92624.0,92623.0,0.099]
[1763617332476,0.00142234,92624.0,92623.0,0.099]
[1763617332794,0.00506234,92624.0,92623.0,0.099]
[1763617334472,0.00142234,92624.0,92623.0,0.099]
[1763617334714,0.00506234,92624.0,92623.0,0.099]
[1763617345193,0.00391791,92624.0,92623.0,0.099]
[1763617346584,0.05210249,92637.0,92634.0,0.22669758]
[1763617346904,0.05210249,92637.0,92634.0,0.22677044]
[1763617347258,0.05210249,92638.0,92635.0,0.099]
[1763617347696,0.001,92637.0,92635.0,0.099]
[1763617347918,0.003,92637.0,92635.0,0.099]
[1763617348329,0.002,92637.0,92635.0,0.099]
[1763617348766,0.01578,92636.0,92635.0,0.099]
[1763617348982,0.30756127,92636.0,92635.0,0.099]
[1763617350738,0.30956127,92636.0,92635.0,0.099]
[1763617351413,0.31056127,92636.0,92635.0,0.099]
[1763617351551,0.30856127,92636.0,92635.0,0.099]
[1763617351892,0.30956127,92636.0,92635.0,0.099]
[1763617352293,0.31056127,92636.0,92635.0,0.099]
[1763617352698,0.01079587,92628.0,92615.0,0.22724742]
[1763617352898,0.00364,92627.0,92624.0,0.01079633]
[1763617353056,0.1102925,92625.0,92623.0,0.01079645]
[1763617353265,0.1102925,92625.0,92621.0,0.2267301]
[1763617353464,0.1102925,92625.0,92621.0,0.01079668]
[1763617353700,0.12108872,92625.0,92621.0,0.01079668]
[1763617353905,0.1102925,92625.0,92622.0,0.22672799]
[1763617354109,0.1102925,92625.0,92623.0,0.1]
[1763617354678,0.1112925,92625.0,92623.0,0.1]
[1763617354886,0.1102925,92625.0,92623.0,0.1]
[1763617355285,0.1112925,92625.0,92623.0,0.1]
[1763617355615,0.01202,92624.0,92623.0,0.1]
[1763617356929,0.01302,92624.0,92623.0,0.1]
[1763617357931,0.22894675,92624.0,92623.0,0.1]
[1763617359232,0.21692675,92624.0,92623.0,0.1]
[1763617359442,0.001,92624.0,92623.0,0.1]
[1763617359952,0.001,92624.0,92623.0,0.1113]
[1763617360154,0.00464,92624.0,92623.0,0.1113]
[1763617360357,0.00464,92624.0,92623.0,0.1226]
[1763617362378,0.00464,92624.0,92623.0,0.1113]
[1763617364033,0.001,92624.0,92623.0,0.1113]
[1763617364175,0.00464,92624.0,92623.0,0.1113]
[1763617368150,0.001,92624.0,92623.0,0.1113]
[1763617368385,0.00464,92624.0,92622.0,0.14025367]
[1763617368897,0.001,92624.0,92622.0,0.14025367]
[1763617369194,0.00364,92623.0,92622.0,0.14025367]
[1763617370221,0.00364,92623.0,92622.0,0.24025367]
[1763617370580,0.00464,92623.0,92622.0,0.24025367]
[1763617371423,0.001,92623.0,92622.0,0.24025367]
[1763617371623,0.00464,92623.0,92622.0,0.24025367]
[1763617374152,0.00464,92623.0,92622.0,0.1]
[1763617374329,0.00464,92623.0,92622.0,0.12159314]
[1763617377871,0.01666,92623.0,92622.0,0.12159314]
[1763617378051,0.01666,92623.0,92622.0,0.1]
[1763617379278,0.10901249,92623.0,92622.0,0.1]
[1763617380496,0.13583806,92623.0,92622.0,0.1]
[1763617380692,0.05310249,92623.0,92622.0,0.1]
[1763617380895,0.00464,92623.0,92622.0,0.1]
[1763617381134,0.00464,92623.0,92622.0,0.12159314]
[1763617381379,0.00364,92623.0,92622.0,0.12159314]
[1763617381832,0.00464,92623.0,92622.0,0.12159314]
[1763617382034,0.00564,92623.0,92622.0,0.12159314]
[1763617382251,0.002,92623.0,92622.0,0.1]
[1763617382453,0.00564,92623.0,92622.0,0.12159314]
[1763617383000,0.00564,92623.0,92622.0,0.1]
[1763617383602,0.00564,92623.0,92622.0,0.12159314]
[1763617386646,0.002,92623.0,92622.0,0.12159314]
[1763617386847,0.00564,92623.0,92622.0,0.12159314]
[1763617387247,0.002,92623.0,92622.0,0.12159314]
[1763617387449,0.00564,92623.0,92622.0,0.12159314]
[1763617391910,0.00564,92623.0,92622.0,0.1]
[1763617392834,0.00564,92623.0,92622.0,0.12159314]
[1763617393688,0.002,92623.0,92622.0,0.12159314]
[1763617393890,0.00564,92623.0,92622.0,0.12159314]
[1763617394957,0.00564,92623.0,92622.0,0.1]
[1763617395574,0.002,92623.0,92622.0,0.1]
[1763617395782,0.00564,92623.0,92622.0,0.1]
[1763617402526,0.00564,92623.0,92622.0,0.31593142]
[1763617402735,0.002,92623.0,92622.0,0.31593142]
[1763617402944,0.00564,92623.0,92622.0,0.31593142]
[1763617404747,0.002,92623.0,92622.0,0.31593142]
[1763617405051,0.00564,92623.0,92622.0,0.31593142]
[1763617406058,0.00564,92623.0,92622.0,0.1]
[1763617406267,0.00564,92623.0,92622.0,0.31593142]
[1763617407206,0.00564,92623.0,92622.0,0.1]
[1763617407928,0.23686908,92623.0,92622.0,0.1]
[1763617408138,0.02094,92623.0,92622.0,0.1]
[1763617409426,0.23686908,92623.0,92622.0,0.1]
[1763617410223,0.02094,92623.0,92622.0,0.1]
[1763617411419,0.00564,92623.0,92622.0,0.1]
[1763617412333,0.09768249,92623.0,92622.0,0.1]
[1763617412503,0.13009983,92623.0,92622.0,0.1]
[1763617417646,0.12645983,92623.0,92622.0,0.1]
[1763617417848,0.34602891,92623.0,92622.0,0.1]
[1763617418201,0.13009983,92623.0,92622.0,0.1]
[1763617420486,0.09015983,92623.0,92622.0,0.1]
[1763617422090,0.03441734,92623.0,92622.0,0.1]
[1763617422322,0.00564,92623.0,92622.0,0.1]
[1763617428626,0.002,92623.0,92622.0,0.1]
[1763617428987,0.00564,92623.0,92622.0,0.1]
[1763617429485,0.002,92623.0,92622.0,0.1]
[1763617429633,0.00564,92623.0,92622.0,0.1]
[1763617430381,0.002,92623.0,92622.0,0.1]
[1763617430532,0.00564,92623.0,92622.0,0.1]
[1763617432573,0.00564,92623.0,92621.0,0.11173608]
[1763617432860,0.00564,92623.0,92621.0,0.13332945]
[1763617433449,0.00464,92623.0,92621.0,0.13332945]
[1763617433668,0.00364,92623.0,92621.0,0.13332945]
[1763617433883,0.00464,92623.0,92621.0,0.13332945]
[1763617434013,0.00464,92623.0,92622.0,0.1]
[1763617435183,0.00564,92623.0,92622.0,0.1]
[1763617435977,0.00464,92623.0,92622.0,0.1]
[1763617436465,0.00564,92623.0,92622.0,0.1]
[1763617445550,0.00564,92623.0,92622.0,0.13240957]
[1763617446045,0.00564,92623.0,92622.0,0.15400271]
[1763617446674,0.002,92623.0,92622.0,0.15400271]
[1763617448324,0.002,92623.0,92622.0,0.47700271]
[1763617448560,0.002,92623.0,92622.0,0.45540957]
[1763617448724,0.001,92623.0,92622.0,0.45540957]
[1763617449203,6.381e-05,92628.0,92625.0,0.01079622]
[1763617449396,6.381e-05,92628.0,92626.0,0.0215922]
[1763617449577,6.381e-05,92628.0,92626.0,0.23751429]
[1763617449987,6.381e-05,92628.0,92627.0,0.00432083]
[1763617450406,6.381e-05,92628.0,92627.0,0.3489128]
[1763617450597,6.381e-05,92628.0,92627.0,0.32732083]
[1763617450975,6.381e-05,92628.0,92627.0,0.42732083]
[1763617452485,6.381e-05,92628.0,92627.0,0.10432083]
[1763617454721,0.00106381,92628.0,92627.0,0.10432083]
[1763617458055,0.00106381,92628.0,92627.0,0.1]
[1763617459157,0.25646124,92628.0,92627.0,0.1]
[1763617460198,0.25746124,92628.0,92627.0,0.1]
[1763617460819,0.25646124,92628.0,92627.0,0.1]
[1763617460986,0.25746124,92628.0,92627.0,0.1]
[1763617466008,0.25746124,92628.0,92621.0,0.21593356]
[1763617466009,0.01079598,92627.0,92621.0,0.1292184]
[1763617466190,0.00364,92626.0,92623.0,0.22672539]
[1763617466392,0.00364,92626.0,92623.0,0.01079645]
[1763617466595,0.02811,92624.0,92622.0,0.01079657]
[1763617466846,0.0164,92623.0,92621.0,0.1292184]
[1763617467045,0.03948,92623.0,92620.0,0.0107968]
[1763617468002,0.0164,92623.0,92620.0,0.0107968]
[1763617468210,0.02273,92622.0,92621.0,0.1]
[1763617468660,0.03819,92622.0,92621.0,0.31593375]
[1763617469264,0.01546,92622.0,92621.0,0.31593375]
[1763617470030,0.01546,92622.0,92621.0,0.1]
[1763617470232,0.03919,92622.0,92621.0,0.1]
[1763617472182,0.05045,92622.0,92621.0,0.1]
[1763617475080,0.10255249,92622.0,92621.0,0.1]
[1763617478658,0.12937806,92622.0,92621.0,0.1]
[1763617479556,0.10664806,92622.0,92621.0,0.1]
[1763617481838,0.13020806,92622.0,92621.0,0.1]
[1763617482044,0.10664806,92622.0,92621.0,0.1]
[1763617482445,0.11028806,92622.0,92621.0,0.1]
[1763617485325,0.09482806,92622.0,92621.0,0.1]
[1763617485508,0.06800249,92622.0,92621.0,0.1]
[1763617487409,0.10752249,92622.0,92621.0,0.1]
[1763617488576,0.08396249,92622.0,92621.0,0.1]
[1763617490350,0.06800249,92622.0,92621.0,0.1]
[1763617493379,0.10752249,92622.0,92621.0,0.1]
[1763617493790,0.13434806,92622.0,92621.0,0.1]
[1763617499932,0.16676452,92622.0,92621.0,0.1]
[1763617512575,0.13993895,92622.0,92621.0,0.1]
[1763617513371,0.16676452,92622.0,92621.0,0.1]
[1763617514571,0.11637895,92622.0,92621.0,0.1]
[1763617516102,0.08915895,92622.0,92621.0,0.1]
[1763617516493,0.05674249,92622.0,92621.0,0.1]
[1763617516696,0.05310249,92622.0,92621.0,0.1]
[1763617516898,0.00464,92622.0,92621.0,0.1]
[1763617519589,0.00464,92622.0,92621.0,0.31593375]
[1763617519788,0.00464,92622.0,92621.0,0.1]
[1763617521241,0.00464,92622.0,92621.0,0.31593375]
[1763617525241,0.00464,92622.0,92621.0,0.1]
[1763617527359,0.00464,92622.0,92621.0,0.31593375]
[1763617532292,0.001,92622.0,92621.0,0.31593375]
[1763617532494,0.00464,92622.0,92621.0,0.31593375]
[1763617533646,0.00364,92622.0,92621.0,0.31593375]
[1763617534073,0.00464,92622.0,92621.0,0.31593375]
[1763617534476,0.001,92622.0,92621.0,0.31593375]
[1763617535712,0.001,92622.0,92621.0,0.32025487]
[1763617538039,0.001,92622.0,92621.0,0.64325487]
[1763617540861,6.381e-05,92628.0,92627.0,0.53891976]